[Event "Titled Tuesday Blitz April 18 Late 2023"]
[White "mrithyunjay"]
[Black "Kushko, Dmitriy"]
[BlackFideId "14162261"]
[WhiteElo "2413"]
[BlackElo "2230"]
[Result "0-1"]
[Round "01"]
[TimeControl "180+2"]
[Date "2023.04.18"]
[WhiteClock "0:00:59"]
[BlackClock "0:01:06"]

1. e4 {[%clk 0:03:00]}  g6 {[%clk 0:02:59]} 2. d4 {[%clk 0:02:58]}  Bg7 {[%clk 0:03:00]} 3. Nc3 {[%clk 0:02:53]}  d6 {[%clk 0:02:59]} 4. Be3 {[%clk 0:02:52]}  a6 {[%clk 0:02:59]} 5. f4 {[%clk 0:02:42]}  b5 {[%clk 0:02:58]} 6. e5 {[%clk 0:02:42]}  Bb7 {[%clk 0:02:58]} 7. Nf3 {[%clk 0:02:38]}  Nd7 {[%clk 0:02:57]} 8. Bd3 {[%clk 0:02:38]}  c5 {[%clk 0:02:55]} 9. Be4 {[%clk 0:02:37]}  Bxe4 {[%clk 0:02:48]} 10. Nxe4 {[%clk 0:02:38]}  cxd4 {[%clk 0:02:48]} 11. Bxd4 {[%clk 0:02:35]}  dxe5 {[%clk 0:02:49]} 12. fxe5 {[%clk 0:02:35]}  Nf8 {[%clk 0:02:28]} 13. O-O {[%clk 0:02:18]}  Ne6 {[%clk 0:02:25]} 14. Be3 {[%clk 0:02:15]}  Nh6 {[%clk 0:02:09]} 15. h3 {[%clk 0:02:07]}  Nf5 {[%clk 0:02:07]} 16. Bf2 {[%clk 0:02:07]}  h5 {[%clk 0:01:53]} 17. g4 {[%clk 0:01:44]}  hxg4 {[%clk 0:01:53]} 18. hxg4 {[%clk 0:01:45]}  Nh6 {[%clk 0:01:50]} 19. Nd4 {[%clk 0:01:32]}  Nxd4 {[%clk 0:01:31]} 20. Bxd4 {[%clk 0:01:33]}  Nxg4 {[%clk 0:01:31]} 21. Nd6+ {[%clk 0:01:05]}  exd6 {[%clk 0:01:27]} 22. Qxg4 {[%clk 0:01:06]}  dxe5 {[%clk 0:01:18]} 23. Bc5 {[%clk 0:01:05]}  Qd5 {[%clk 0:01:12]} 24. Ba3 {[%clk 0:01:03]}  Rh1+ {[%clk 0:01:05]} 25. Kf2 {[%clk 0:01:03]}  Rh2+ {[%clk 0:01:06]} 26. Ke1 {[%clk 0:00:59]}  Qd2# {[%clk 0:01:06]} 0-1


[Site "https://www.chess.com"]

[Event "Titled Tuesday Blitz April 18 Late 2023"]
[White "Beerdsen, Thomas"]
[Black "Aranda Marin, Cristian"]
[WhiteFideId "1030108"]
[BlackFideId "2205513"]
[WhiteElo "2547"]
[BlackElo "2233"]
[Result "1-0"]
[Round "01"]
[TimeControl "180+2"]
[Date "2023.04.18"]
[WhiteClock "0:01:36"]
[BlackClock "0:01:09"]

1. e4 {[%clk 0:03:00]}  c5 {[%clk 0:02:59]} 2. Nf3 {[%clk 0:03:00]}  e6 {[%clk 0:02:59]} 3. d4 {[%clk 0:03:00]}  cxd4 {[%clk 0:02:59]} 4. Bg5 {[%clk 0:03:00]}  Qb6 {[%clk 0:02:58]} 5. Qxd4 {[%clk 0:03:00]}  Qxd4 {[%clk 0:02:57]} 6. Nxd4 {[%clk 0:03:01]}  a6 {[%clk 0:02:57]} 7. Nd2 {[%clk 0:03:01]}  b5 {[%clk 0:02:57]} 8. a4 {[%clk 0:03:01]}  b4 {[%clk 0:02:57]} 9. Nc4 {[%clk 0:03:00]}  Bb7 {[%clk 0:02:54]} 10. Nb6 {[%clk 0:02:56]}  Ra7 {[%clk 0:02:52]} 11. O-O-O {[%clk 0:02:51]}  Bc5 {[%clk 0:02:52]} 12. a5 {[%clk 0:02:51]}  Nc6 {[%clk 0:02:47]} 13. Nb3 {[%clk 0:02:48]}  Bxf2 {[%clk 0:02:24]} 14. Nxd7 {[%clk 0:02:43]}  f6 {[%clk 0:02:15]} 15. Bf4 {[%clk 0:02:38]}  e5 {[%clk 0:02:14]} 16. Bg3 {[%clk 0:02:38]}  Be3+ {[%clk 0:02:12]} 17. Kb1 {[%clk 0:02:38]}  Nge7 {[%clk 0:02:10]} 18. Bc4 {[%clk 0:02:38]}  Nd4 {[%clk 0:02:05]} 19. Ndc5 {[%clk 0:02:28]}  Bc8 {[%clk 0:01:58]} 20. Rhe1 {[%clk 0:02:18]}  Nxb3 {[%clk 0:01:52]} 21. Nxb3 {[%clk 0:02:19]}  Bh6 {[%clk 0:01:49]} 22. Bf2 {[%clk 0:02:19]}  Rc7 {[%clk 0:01:46]} 23. Bc5 {[%clk 0:02:17]}  Nc6 {[%clk 0:01:34]} 24. Bd6 {[%clk 0:02:12]}  Rb7 {[%clk 0:01:33]} 25. Nc5 {[%clk 0:02:12]}  Ra7 {[%clk 0:01:32]} 26. Bd5 {[%clk 0:02:01]}  Nxa5 {[%clk 0:01:30]} 27. Bb8 {[%clk 0:02:01]}  Re7 {[%clk 0:01:21]} 28. Bd6 {[%clk 0:02:01]}  Ra7 {[%clk 0:01:21]} 29. Rd3 {[%clk 0:02:01]}  g6 {[%clk 0:01:19]} 30. Bb8 {[%clk 0:01:59]}  Re7 {[%clk 0:01:18]} 31. Bd6 {[%clk 0:02:00]}  Ra7 {[%clk 0:01:19]} 32. Red1 {[%clk 0:02:01]}  Bf8 {[%clk 0:01:19]} 33. Bxf8 {[%clk 0:01:55]}  Kxf8 {[%clk 0:01:19]} 34. c3 {[%clk 0:01:53]}  bxc3 {[%clk 0:01:18]} 35. b4 {[%clk 0:01:54]}  Nb7 {[%clk 0:01:11]} 36. Bxb7 {[%clk 0:01:44]}  Bxb7 {[%clk 0:01:09]} 37. Rd7 {[%clk 0:01:36]} 1-0


[Site "https://www.chess.com"]

[Event "Titled Tuesday Blitz April 18 Late 2023"]
[White "Abduzhaparov"]
[Black "Timmermans, Mark"]
[BlackFideId "1026399"]
[WhiteElo "2412"]
[BlackElo "2460"]
[Result "0-1"]
[Round "01"]
[TimeControl "180+2"]
[Date "2023.04.18"]
[WhiteClock "0:00:16"]
[BlackClock "0:00:46"]

1. Nf3 {[%clk 0:03:00]}  Nf6 {[%clk 0:02:59]} 2. c4 {[%clk 0:03:01]}  e6 {[%clk 0:03:00]} 3. g3 {[%clk 0:03:01]}  d5 {[%clk 0:03:00]} 4. Bg2 {[%clk 0:03:02]}  Be7 {[%clk 0:03:00]} 5. O-O {[%clk 0:03:02]}  O-O {[%clk 0:02:56]} 6. Qc2 {[%clk 0:03:02]}  a5 {[%clk 0:02:51]} 7. d4 {[%clk 0:03:01]}  Na6 {[%clk 0:02:49]} 8. a3 {[%clk 0:03:01]}  c6 {[%clk 0:02:44]} 9. Nbd2 {[%clk 0:02:58]}  Nc7 {[%clk 0:02:37]} 10. e4 {[%clk 0:02:57]}  dxe4 {[%clk 0:02:37]} 11. Nxe4 {[%clk 0:02:57]}  Nxe4 {[%clk 0:02:36]} 12. Qxe4 {[%clk 0:02:58]}  b5 {[%clk 0:02:30]} 13. Bf4 {[%clk 0:02:46]}  Bd7 {[%clk 0:02:08]} 14. Ne5 {[%clk 0:02:42]}  bxc4 {[%clk 0:02:08]} 15. Nxc6 {[%clk 0:02:35]}  Bxc6 {[%clk 0:02:09]} 16. Qxc6 {[%clk 0:02:35]}  Nd5 {[%clk 0:02:09]} 17. Qxc4 {[%clk 0:02:25]}  Rc8 {[%clk 0:02:03]} 18. Qa4 {[%clk 0:02:16]}  Nxf4 {[%clk 0:01:54]} 19. gxf4 {[%clk 0:02:17]}  Qb6 {[%clk 0:01:55]} 20. Rad1 {[%clk 0:02:07]}  Rfd8 {[%clk 0:01:40]} 21. d5 {[%clk 0:02:02]}  exd5 {[%clk 0:01:39]} 22. Rxd5 {[%clk 0:01:57]}  Rxd5 {[%clk 0:01:39]} 23. Bxd5 {[%clk 0:01:57]}  Rd8 {[%clk 0:01:32]} 24. Qb3 {[%clk 0:01:51]}  Qxb3 {[%clk 0:01:32]} 25. Bxb3 {[%clk 0:01:50]}  Rb8 {[%clk 0:01:33]} 26. Bc4 {[%clk 0:01:41]}  Rxb2 {[%clk 0:01:34]} 27. a4 {[%clk 0:01:40]}  Rb4 {[%clk 0:01:28]} 28. Bb5 {[%clk 0:01:39]}  Rxf4 {[%clk 0:01:27]} 29. Rc1 {[%clk 0:01:40]}  g6 {[%clk 0:01:18]} 30. Rc4 {[%clk 0:01:38]}  Rf5 {[%clk 0:01:16]} 31. Rc7 {[%clk 0:01:33]}  Bc5 {[%clk 0:01:15]} 32. Bd3 {[%clk 0:01:12]}  Bxf2+ {[%clk 0:01:12]} 33. Kg2 {[%clk 0:01:10]}  Rf4 {[%clk 0:01:13]} 34. Rc4 {[%clk 0:00:56]}  Bd4 {[%clk 0:01:10]} 35. Kg3 {[%clk 0:00:50]}  g5 {[%clk 0:01:11]} 36. Rc6 {[%clk 0:00:42]}  Be5 {[%clk 0:01:09]} 37. Kg2 {[%clk 0:00:39]}  Rxa4 {[%clk 0:01:09]} 38. Rh6 {[%clk 0:00:35]}  Ra2+ {[%clk 0:01:06]} 39. Kg1 {[%clk 0:00:34]}  Rxh2 {[%clk 0:00:59]} 40. Rxh2 {[%clk 0:00:32]}  Bxh2+ {[%clk 0:01:00]} 41. Kxh2 {[%clk 0:00:32]}  a4 {[%clk 0:00:57]} 42. Kg3 {[%clk 0:00:32]}  a3 {[%clk 0:00:57]} 43. Bc4 {[%clk 0:00:32]}  Kg7 {[%clk 0:00:55]} 44. Kg4 {[%clk 0:00:32]}  f6 {[%clk 0:00:47]} 45. Bb3 {[%clk 0:00:30]}  Kf8 {[%clk 0:00:47]} 46. Ba2 {[%clk 0:00:26]}  Ke7 {[%clk 0:00:47]} 47. Bb1 {[%clk 0:00:20]}  Kd6 {[%clk 0:00:47]} 48. Kh5 {[%clk 0:00:16]}  Ke5 {[%clk 0:00:46]} 0-1


[Site "https://www.chess.com"]

[Event "Titled Tuesday Blitz April 18 Late 2023"]
[White "Llorente Zaro, Alfonso"]
[Black "Papayan, Oleg"]
[WhiteFideId "2254131"]
[BlackFideId "4193911"]
[WhiteElo "2485"]
[BlackElo "2153"]
[Result "1-0"]
[Round "01"]
[TimeControl "180+2"]
[Date "2023.04.18"]
[WhiteClock "0:00:59"]
[BlackClock "0:00:09"]

1. e4 {[%clk 0:02:55]}  d5 {[%clk 0:02:58]} 2. exd5 {[%clk 0:02:52]}  Qxd5 {[%clk 0:02:59]} 3. Nc3 {[%clk 0:02:53]}  Qa5 {[%clk 0:02:59]} 4. g3 {[%clk 0:02:53]}  Nf6 {[%clk 0:02:56]} 5. Bg2 {[%clk 0:02:54]}  c6 {[%clk 0:02:57]} 6. Nge2 {[%clk 0:02:54]}  Bf5 {[%clk 0:02:57]} 7. b4 {[%clk 0:02:52]}  Qc7 {[%clk 0:02:46]} 8. O-O {[%clk 0:02:49]}  e6 {[%clk 0:02:39]} 9. b5 {[%clk 0:02:50]}  Be7 {[%clk 0:02:24]} 10. d3 {[%clk 0:02:47]}  O-O {[%clk 0:02:23]} 11. Rb1 {[%clk 0:02:47]}  Nbd7 {[%clk 0:02:09]} 12. bxc6 {[%clk 0:02:40]}  bxc6 {[%clk 0:02:10]} 13. Nd4 {[%clk 0:02:39]}  Bg4 {[%clk 0:01:48]} 14. Qe1 {[%clk 0:02:37]}  Nd5 {[%clk 0:01:25]} 15. Bxd5 {[%clk 0:02:05]}  cxd5 {[%clk 0:01:25]} 16. Nxd5 {[%clk 0:02:05]}  exd5 {[%clk 0:01:11]} 17. Qxe7 {[%clk 0:02:06]}  Rfe8 {[%clk 0:00:59]} 18. Bf4 {[%clk 0:02:05]}  Qc3 {[%clk 0:00:45]} 19. Qb4 {[%clk 0:02:03]}  Rac8 {[%clk 0:00:30]} 20. Qxc3 {[%clk 0:01:54]}  Rxc3 {[%clk 0:00:31]} 21. Rb7 {[%clk 0:01:53]}  Nf6 {[%clk 0:00:28]} 22. Rxa7 {[%clk 0:01:46]}  Nh5 {[%clk 0:00:29]} 23. Bd2 {[%clk 0:01:41]}  Rcc8 {[%clk 0:00:30]} 24. f3 {[%clk 0:01:37]}  Bh3 {[%clk 0:00:30]} 25. Re1 {[%clk 0:01:37]}  Nf6 {[%clk 0:00:20]} 26. Rxe8+ {[%clk 0:01:35]}  Nxe8 {[%clk 0:00:21]} 27. Bf4 {[%clk 0:01:28]}  h6 {[%clk 0:00:15]} 28. g4 {[%clk 0:01:28]}  g5 {[%clk 0:00:12]} 29. Bg3 {[%clk 0:01:26]}  Ng7 {[%clk 0:00:07]} 30. Rb7 {[%clk 0:01:16]}  Ne6 {[%clk 0:00:07]} 31. Nxe6 {[%clk 0:01:16]}  fxe6 {[%clk 0:00:08]} 32. Rb8 {[%clk 0:01:17]}  Rxb8 {[%clk 0:00:07]} 33. Bxb8 {[%clk 0:01:17]}  h5 {[%clk 0:00:07]} 34. Kf2 {[%clk 0:01:12]}  hxg4 {[%clk 0:00:04]} 35. Kg3 {[%clk 0:01:13]}  Kf7 {[%clk 0:00:04]} 36. fxg4 {[%clk 0:01:12]}  Bf1 {[%clk 0:00:04]} 37. Be5 {[%clk 0:01:09]}  Be2 {[%clk 0:00:04]} 38. a4 {[%clk 0:00:59]}  Bd1 {[%clk 0:00:04]} 39. a5 {[%clk 0:00:59]}  Bxc2 {[%clk 0:00:04]} 40. a6 {[%clk 0:00:55]}  Ba4 {[%clk 0:00:03]} 41. a7 {[%clk 0:00:53]}  Bc6 {[%clk 0:00:04]} 42. h4 {[%clk 0:00:53]}  gxh4+ {[%clk 0:00:03]} 43. Kxh4 {[%clk 0:00:54]}  Kg6 {[%clk 0:00:01]} 44. d4 {[%clk 0:00:55]}  Bb7 {[%clk 0:00:01]} 45. Kg3 {[%clk 0:00:53]}  Kg5 {[%clk 0:00:01]} 46. Bd6 {[%clk 0:00:53]}  Ba8 {[%clk 0:00:01]} 47. Be7+ {[%clk 0:00:53]}  Kg6 {[%clk 0:00:01]} 48. Kf4 {[%clk 0:00:53]}  Kf7 {[%clk 0:00:02]} 49. Bc5 {[%clk 0:00:53]}  Bb7 {[%clk 0:00:01]} 50. Ke5 {[%clk 0:00:51]}  Kg6 {[%clk 0:00:01]} 51. Kxe6 {[%clk 0:00:51]}  Kg5 {[%clk 0:00:01]} 52. Kd7 {[%clk 0:00:52]}  Kxg4 {[%clk 0:00:02]} 53. Kc7 {[%clk 0:00:52]}  Ba8 {[%clk 0:00:02]} 54. Kb8 {[%clk 0:00:52]}  Bc6 {[%clk 0:00:03]} 55. a8=Q {[%clk 0:00:53]}  Bxa8 {[%clk 0:00:03]} 56. Kxa8 {[%clk 0:00:54]}  Kf5 {[%clk 0:00:03]} 57. Kb7 {[%clk 0:00:54]}  Ke4 {[%clk 0:00:04]} 58. Kc6 {[%clk 0:00:55]}  Kd3 {[%clk 0:00:04]} 59. Kxd5 {[%clk 0:00:56]}  Kc3 {[%clk 0:00:05]} 60. Kc6 {[%clk 0:00:56]}  Kd3 {[%clk 0:00:06]} 61. d5 {[%clk 0:00:57]}  Kc4 {[%clk 0:00:06]} 62. d6 {[%clk 0:00:58]}  Kb3 {[%clk 0:00:07]} 63. d7 {[%clk 0:00:58]}  Kc4 {[%clk 0:00:08]} 64. d8=Q {[%clk 0:00:59]}  Kb3 {[%clk 0:00:08]} 65. Qd3+ {[%clk 0:00:59]}  Kb2 {[%clk 0:00:08]} 66. Bd4+ {[%clk 0:00:58]}  Ka2 {[%clk 0:00:09]} 67. Qc2+ {[%clk 0:00:58]}  Ka3 {[%clk 0:00:09]} 68. Bc5# {[%clk 0:00:59]} 1-0


[Site "https://www.chess.com"]

[Event "Titled Tuesday Blitz April 18 Late 2023"]
[White "Alexikov, Alexander"]
[Black "Flores, Diego"]
[WhiteFideId "14103958"]
[BlackFideId "108049"]
[WhiteElo "2186"]
[BlackElo "2613"]
[Result "0-1"]
[Round "01"]
[TimeControl "180+2"]
[Date "2023.04.18"]
[WhiteClock "0:00:01"]
[BlackClock "0:00:41"]

1. e4 {[%clk 0:03:00]}  c5 {[%clk 0:02:58]} 2. Nf3 {[%clk 0:03:00]}  e6 {[%clk 0:02:57]} 3. d4 {[%clk 0:02:56]}  cxd4 {[%clk 0:02:58]} 4. Nxd4 {[%clk 0:02:56]}  a6 {[%clk 0:02:53]} 5. c4 {[%clk 0:02:54]}  Qc7 {[%clk 0:02:53]} 6. Nc3 {[%clk 0:02:52]}  Nf6 {[%clk 0:02:54]} 7. a3 {[%clk 0:02:42]}  b6 {[%clk 0:02:54]} 8. Be2 {[%clk 0:02:39]}  Bb7 {[%clk 0:02:54]} 9. f3 {[%clk 0:02:38]}  h5 {[%clk 0:02:52]} 10. Be3 {[%clk 0:02:34]}  h4 {[%clk 0:02:52]} 11. O-O {[%clk 0:02:30]}  Bd6 {[%clk 0:02:51]} 12. h3 {[%clk 0:02:25]}  Bh2+ {[%clk 0:02:51]} 13. Kh1 {[%clk 0:02:24]}  Nh5 {[%clk 0:02:49]} 14. g4 {[%clk 0:02:12]}  hxg3 {[%clk 0:02:34]} 15. Kg2 {[%clk 0:02:11]}  Nf4+ {[%clk 0:02:31]} 16. Bxf4 {[%clk 0:02:09]}  Qxf4 {[%clk 0:02:32]} 17. Rh1 {[%clk 0:01:42]}  Qh4 {[%clk 0:02:29]} 18. Rxh2 {[%clk 0:01:42]}  gxh2 {[%clk 0:02:28]} 19. Kh1 {[%clk 0:01:41]}  Qxh3 {[%clk 0:02:25]} 20. Bf1 {[%clk 0:01:41]}  Qg3 {[%clk 0:02:24]} 21. Bg2 {[%clk 0:01:40]}  Nc6 {[%clk 0:02:21]} 22. Nxc6 {[%clk 0:01:38]}  Bxc6 {[%clk 0:02:21]} 23. Qd4 {[%clk 0:01:36]}  Rh6 {[%clk 0:02:15]} 24. Ne2 {[%clk 0:01:24]}  Qg5 {[%clk 0:02:05]} 25. Rd1 {[%clk 0:01:14]}  f5 {[%clk 0:01:09]} 26. exf5 {[%clk 0:00:20]}  Qxf5 {[%clk 0:01:01]} 27. Qxg7 {[%clk 0:00:13]}  Rg6 {[%clk 0:00:57]} 28. Qh8+ {[%clk 0:00:12]}  Ke7 {[%clk 0:00:50]} 29. Qh7+ {[%clk 0:00:09]}  Qf7 {[%clk 0:00:47]} 30. Qh4+ {[%clk 0:00:07]}  Qf6 {[%clk 0:00:46]} 31. Qxf6+ {[%clk 0:00:02]}  Kxf6 {[%clk 0:00:42]} 32. Nd4 {[%clk 0:00:01]}  Rag8 {[%clk 0:00:41]} 0-1


[Site "https://www.chess.com"]

[Event "Titled Tuesday Blitz April 18 Late 2023"]
[White "Boruchovsky, Avital"]
[Black "Ramirez Vido, Robert Yorisan"]
[WhiteFideId "2800055"]
[BlackFideId "3513823"]
[WhiteElo "2450"]
[BlackElo "2403"]
[Result "1-0"]
[Round "01"]
[TimeControl "180+2"]
[Date "2023.04.18"]
[WhiteClock "0:00:12"]
[BlackClock "0:00:05"]

1. Nf3 {[%clk 0:02:58]}  Nf6 {[%clk 0:02:59]} 2. c4 {[%clk 0:02:57]}  g6 {[%clk 0:03:00]} 3. b3 {[%clk 0:02:57]}  Bg7 {[%clk 0:03:00]} 4. Bb2 {[%clk 0:02:58]}  O-O {[%clk 0:03:01]} 5. Nc3 {[%clk 0:02:58]}  d6 {[%clk 0:03:01]} 6. d4 {[%clk 0:02:55]}  Nbd7 {[%clk 0:02:57]} 7. e3 {[%clk 0:02:54]}  e5 {[%clk 0:02:57]} 8. Be2 {[%clk 0:02:53]}  Re8 {[%clk 0:02:57]} 9. Qc2 {[%clk 0:02:52]}  exd4 {[%clk 0:02:57]} 10. Nxd4 {[%clk 0:02:53]}  d5 {[%clk 0:02:57]} 11. Nxd5 {[%clk 0:02:49]}  Nxd5 {[%clk 0:02:56]} 12. cxd5 {[%clk 0:02:50]}  Nb6 {[%clk 0:02:53]} 13. O-O {[%clk 0:02:49]}  Nxd5 {[%clk 0:02:49]} 14. Rad1 {[%clk 0:02:47]}  Qf6 {[%clk 0:02:33]} 15. Ba1 {[%clk 0:02:35]}  Qe7 {[%clk 0:02:10]} 16. Bf3 {[%clk 0:02:30]}  c6 {[%clk 0:01:49]} 17. Nxc6 {[%clk 0:01:54]}  bxc6 {[%clk 0:01:39]} 18. Bxg7 {[%clk 0:01:55]}  Nxe3 {[%clk 0:01:11]} 19. fxe3 {[%clk 0:01:50]}  Qxe3+ {[%clk 0:01:11]} 20. Kh1 {[%clk 0:01:38]}  Kxg7 {[%clk 0:01:10]} 21. Bxc6 {[%clk 0:01:35]}  Ba6 {[%clk 0:01:06]} 22. Rg1 {[%clk 0:01:13]}  Rac8 {[%clk 0:00:50]} 23. Qb2+ {[%clk 0:01:13]}  Qe5 {[%clk 0:00:50]} 24. Qxe5+ {[%clk 0:01:05]}  Rxe5 {[%clk 0:00:51]} 25. Rd6 {[%clk 0:01:04]}  Bd3 {[%clk 0:00:36]} 26. h3 {[%clk 0:00:53]}  Bf5 {[%clk 0:00:26]} 27. Bf3 {[%clk 0:00:45]}  Rc2 {[%clk 0:00:24]} 28. Ra6 {[%clk 0:00:45]}  Re7 {[%clk 0:00:24]} 29. Rd1 {[%clk 0:00:40]}  Rf2 {[%clk 0:00:24]} 30. Kg1 {[%clk 0:00:39]}  Rc2 {[%clk 0:00:21]} 31. b4 {[%clk 0:00:31]}  Be4 {[%clk 0:00:18]} 32. Re1 {[%clk 0:00:21]}  f5 {[%clk 0:00:18]} 33. b5 {[%clk 0:00:17]}  Rb2 {[%clk 0:00:19]} 34. a4 {[%clk 0:00:17]}  Rc7 {[%clk 0:00:15]} 35. Bxe4 {[%clk 0:00:17]}  fxe4 {[%clk 0:00:16]} 36. Rxe4 {[%clk 0:00:17]}  Rcc2 {[%clk 0:00:13]} 37. Rxa7+ {[%clk 0:00:16]}  Kh6 {[%clk 0:00:13]} 38. Rh4+ {[%clk 0:00:16]}  Kg5 {[%clk 0:00:14]} 39. Rg4+ {[%clk 0:00:17]}  Kf5 {[%clk 0:00:14]} 40. Rxh7 {[%clk 0:00:16]}  Ra2 {[%clk 0:00:12]} 41. Rf7+ {[%clk 0:00:14]}  Ke6 {[%clk 0:00:12]} 42. Rf3 {[%clk 0:00:14]}  Ke7 {[%clk 0:00:07]} 43. Rb3 {[%clk 0:00:13]}  Rc1+ {[%clk 0:00:04]} 44. Kh2 {[%clk 0:00:12]}  Rca1 {[%clk 0:00:05]} 45. b6 {[%clk 0:00:12]} 1-0


[Site "https://www.chess.com"]

[Event "Titled Tuesday Blitz April 18 Late 2023"]
[White "Yeritsyan, Hayk"]
[Black "Milikow, Yoav"]
[WhiteFideId "13307320"]
[BlackFideId "2822237"]
[WhiteElo "2397"]
[BlackElo "2410"]
[Result "0-1"]
[Round "01"]
[TimeControl "180+2"]
[Date "2023.04.18"]
[WhiteClock "0:00:05"]
[BlackClock "0:00:36"]

1. d4 {[%clk 0:02:52]}  Nf6 {[%clk 0:02:58]} 2. Nf3 {[%clk 0:02:51]}  d5 {[%clk 0:02:51]} 3. e3 {[%clk 0:02:51]}  Bf5 {[%clk 0:02:44]} 4. Bd3 {[%clk 0:02:50]}  Bxd3 {[%clk 0:02:44]} 5. Qxd3 {[%clk 0:02:51]}  e6 {[%clk 0:02:45]} 6. Qb5+ {[%clk 0:02:52]}  Nbd7 {[%clk 0:02:39]} 7. Qxb7 {[%clk 0:02:53]}  Bd6 {[%clk 0:02:36]} 8. Qb5 {[%clk 0:02:52]}  O-O {[%clk 0:02:37]} 9. Qd3 {[%clk 0:02:52]}  c5 {[%clk 0:02:37]} 10. c3 {[%clk 0:02:53]}  c4 {[%clk 0:02:37]} 11. Qc2 {[%clk 0:02:53]}  a5 {[%clk 0:02:36]} 12. Nbd2 {[%clk 0:02:53]}  a4 {[%clk 0:02:36]} 13. e4 {[%clk 0:02:42]}  Bf4 {[%clk 0:02:36]} 14. O-O {[%clk 0:02:41]}  Qb8 {[%clk 0:02:19]} 15. Re1 {[%clk 0:02:24]}  Rc8 {[%clk 0:02:15]} 16. e5 {[%clk 0:01:58]}  Ne8 {[%clk 0:02:14]} 17. Nf1 {[%clk 0:01:49]}  Bxc1 {[%clk 0:02:13]} 18. Rexc1 {[%clk 0:01:49]}  Qb5 {[%clk 0:02:11]} 19. a3 {[%clk 0:01:43]}  Rcb8 {[%clk 0:02:08]} 20. Rab1 {[%clk 0:01:37]}  Nf8 {[%clk 0:02:05]} 21. Ne3 {[%clk 0:01:33]}  Rb7 {[%clk 0:02:01]} 22. Qd1 {[%clk 0:01:29]}  Rab8 {[%clk 0:02:00]} 23. Nc2 {[%clk 0:01:29]}  Ng6 {[%clk 0:01:40]} 24. g3 {[%clk 0:01:24]}  Ne7 {[%clk 0:01:36]} 25. Nb4 {[%clk 0:01:23]}  Nc6 {[%clk 0:01:36]} 26. Qd2 {[%clk 0:01:18]}  Na5 {[%clk 0:01:33]} 27. Re1 {[%clk 0:01:11]}  Qd7 {[%clk 0:01:32]} 28. Qe2 {[%clk 0:01:08]}  Ra8 {[%clk 0:01:29]} 29. Nd2 {[%clk 0:00:51]}  Nc7 {[%clk 0:01:15]} 30. f4 {[%clk 0:00:49]}  Na6 {[%clk 0:01:15]} 31. Rbc1 {[%clk 0:00:45]}  Nc6 {[%clk 0:01:13]} 32. Qe3 {[%clk 0:00:35]}  Qc7 {[%clk 0:01:09]} 33. Nb1 {[%clk 0:00:20]}  Qb6 {[%clk 0:01:04]} 34. Rf1 {[%clk 0:00:20]}  Ne7 {[%clk 0:00:56]} 35. g4 {[%clk 0:00:20]}  g6 {[%clk 0:00:51]} 36. Qg3 {[%clk 0:00:19]}  Kf8 {[%clk 0:00:47]} 37. Qh4 {[%clk 0:00:17]}  Nc7 {[%clk 0:00:42]} 38. Qxh7 {[%clk 0:00:16]}  Ng8 {[%clk 0:00:42]} 39. f5 {[%clk 0:00:15]}  exf5 {[%clk 0:00:42]} 40. gxf5 {[%clk 0:00:15]}  gxf5 {[%clk 0:00:38]} 41. Qxf5 {[%clk 0:00:14]}  Qe6 {[%clk 0:00:36]} 42. Qxe6 {[%clk 0:00:14]}  Nxe6 {[%clk 0:00:37]} 43. Rf2 {[%clk 0:00:11]}  Ra5 {[%clk 0:00:36]} 44. Rcf1 {[%clk 0:00:10]}  Ke8 {[%clk 0:00:37]} 45. Nc6 {[%clk 0:00:08]}  Rab5 {[%clk 0:00:36]} 46. Nb4 {[%clk 0:00:08]}  Nh6 {[%clk 0:00:35]} 47. Nd2 {[%clk 0:00:06]}  Ng5 {[%clk 0:00:33]} 48. Kg2 {[%clk 0:00:06]}  Ng4 {[%clk 0:00:31]} 49. Re2 {[%clk 0:00:05]}  Ne6 {[%clk 0:00:31]} 50. h3 {[%clk 0:00:05]}  Nh6 {[%clk 0:00:32]} 51. Rf6 {[%clk 0:00:04]}  Ng8 {[%clk 0:00:32]} 52. Rf3 {[%clk 0:00:04]}  Ne7 {[%clk 0:00:32]} 53. Ref2 {[%clk 0:00:04]}  Ng6 {[%clk 0:00:33]} 54. Nf1 {[%clk 0:00:04]}  Nh4+ {[%clk 0:00:33]} 55. Kg3 {[%clk 0:00:05]}  Nxf3 {[%clk 0:00:34]} 56. Rxf3 {[%clk 0:00:05]}  Ng5 {[%clk 0:00:34]} 57. Rf2 {[%clk 0:00:05]}  Ne4+ {[%clk 0:00:34]} 58. Kf3 {[%clk 0:00:05]}  Nxf2 {[%clk 0:00:35]} 59. Kxf2 {[%clk 0:00:06]}  Ke7 {[%clk 0:00:35]} 60. Ne3 {[%clk 0:00:06]}  Ke6 {[%clk 0:00:36]} 61. Kf3 {[%clk 0:00:07]}  f5 {[%clk 0:00:35]} 62. Kf4 {[%clk 0:00:06]}  Rh7 {[%clk 0:00:34]} 63. Nxf5 {[%clk 0:00:04]}  Rf7 {[%clk 0:00:33]} 64. Kg4 {[%clk 0:00:03]}  Rxf5 {[%clk 0:00:34]} 65. Nxd5 {[%clk 0:00:02]}  Rxd5 {[%clk 0:00:34]} 66. h4 {[%clk 0:00:03]}  Rd8 {[%clk 0:00:34]} 67. h5 {[%clk 0:00:04]}  Rg8+ {[%clk 0:00:35]} 68. Kh4 {[%clk 0:00:04]}  Rf1 {[%clk 0:00:35]} 69. Kh3 {[%clk 0:00:05]}  Rh1# {[%clk 0:00:36]} 0-1


[Site "https://www.chess.com"]